bitfinex/quotes_SOLUSD_20250514
["timestamp","ask_amount","ask_price","bid_price","bid_amount"]
[1747246179805,22.93376337,175.79,175.75,17.24515765]
[1747246180622,5.68860572,175.79,175.76,17.24515765]
[1747246180911,5.68860572,175.79,175.78,17.24515765]
[1747246181694,5.68795859,175.81,175.78,17.24515765]
[1747246182609,22.93311624,175.81,175.77,17.24515765]
[1747246185180,22.93311624,175.81,175.74,19.46]
[1747246185381,22.93311624,175.81,175.77,17.24515765]
[1747246185684,22.93311624,175.81,175.76,17.24515765]
[1747246185909,37.15301271,175.81,175.76,17.24515765]
[1747246186088,17.24515765,175.8,175.76,17.24515765]
[1747246186497,37.15301271,175.81,175.76,17.24515765]
[1747246189286,17.24515765,175.8,175.76,17.24515765]
[1747246191210,5.68860572,175.79,175.76,17.24515765]
[1747246191712,37.15527767,175.79,175.75,17.24515765]
[1747246192009,37.15527767,175.79,175.74,36.56515765]
[1747246192400,37.15527767,175.79,175.74,17.24515765]
[1747246193414,17.24515765,175.78,175.74,17.24515765]
[1747246193984,17.24515765,175.78,175.71,26.0]
[1747246194205,17.24515765,175.78,175.74,17.24515765]
[1747246194487,17.24515765,175.78,175.73,17.24515765]
[1747246195084,19.9123855,175.77,175.73,17.24515765]
[1747246195624,37.15754315,175.77,175.73,17.24515765]
[1747246196303,19.9123855,175.77,175.73,17.24515765]
[1747246196985,19.9123855,175.77,175.71,45.32]
[1747246196986,5.689253,175.77,175.74,17.24515765]
[1747246197187,14.22126141,175.8,175.76,17.24515765]
[1747246197446,14.22126141,175.8,175.72,6.8288023]
[1747246197447,14.22126141,175.8,175.78,17.24515765]
[1747246198088,14.22126141,175.8,175.77,17.24515765]
[1747246198923,14.22126141,175.8,175.72,1.1379628]
[1747246199124,14.22126141,175.8,175.77,17.24515765]
[1747246199327,19.90954354,175.8,175.77,17.24515765]
[1747246199498,37.15470119,175.8,175.76,17.24515765]
[1747246200201,19.90954354,175.8,175.76,17.24515765]
[1747246200508,19.90954354,175.8,175.77,17.24515765]
[1747246201441,19.90954354,175.8,175.72,1.13781351]
[1747246201442,5.68795859,175.81,175.79,17.24515765]
[1747246201803,5.68795859,175.81,175.8,17.24515765]
[1747246202104,5.68795859,175.81,175.79,17.24515765]
[1747246202341,37.15301271,175.81,175.76,17.24515765]
[1747246202625,17.24515765,175.8,175.75,36.56515765]
[1747246203037,17.24515765,175.8,175.75,17.24515765]
[1747246203404,19.91012002,175.79,175.75,17.24515765]
[1747246204327,37.15527767,175.79,175.75,17.24515765]
[1747246204539,37.15527767,175.79,175.72,19.3]
[1747246204540,17.24515765,175.77,175.73,17.24515765]
[1747246204845,17.24515765,175.76,175.72,26.0]
[1747246205493,5.68990042,175.75,175.72,26.0]
[1747246207326,19.91465148,175.75,175.71,17.24515765]
[1747246207525,37.15980913,175.75,175.7,62.54515765]
[1747246207818,37.15980913,175.75,175.7,81.86515765]
[1747246208709,19.91465148,175.75,175.71,17.24515765]
[1747246208913,19.91465148,175.75,175.72,17.24515765]
[1747246209607,17.24515765,175.74,175.69,36.56515765]
[1747246210134,17.24515765,175.73,175.69,19.32]
[1747246210609,17.24515765,175.73,175.68,17.24515765]
[1747246211630,5.69087184,175.72,175.68,17.24515765]
[1747246211934,37.16320909,175.72,175.68,17.24515765]
[1747246212128,37.16320909,175.72,175.66,19.3]
[1747246212129,17.24515765,175.69,175.66,19.3]
[1747246212487,19.91805144,175.72,175.63,25.735]
[1747246212602,17.24515765,175.68,175.64,43.24515765]
[1747246212806,17.24515765,175.69,175.64,43.24515765]
[1747246213627,22.93732522,175.68,175.63,23.66015765]
[1747246213815,17.24515765,175.67,175.61,19.32]
[1747246214019,17.24515765,175.67,175.62,36.56515765]
[1747246214415,17.24515765,175.66,175.62,19.32]
[1747246214922,17.24515765,175.66,175.62,17.24515765]
[1747246215125,17.24515765,175.67,175.62,17.24515765]
[1747246215731,5.69281566,175.66,175.62,17.24515765]
[1747246216458,5.69281566,175.66,175.61,19.32]
[1747246216665,5.69281566,175.66,175.62,17.24515765]
[1747246217040,5.69281566,175.66,175.63,17.24515765]
[1747246217338,17.24515765,175.64,175.6,26.0]
[1747246217542,17.24515765,175.64,175.59,38.13735765]
[1747246217846,17.24515765,175.65,175.6,17.24515765]
[1747246218371,17.24515765,175.64,175.59,20.8922]
[1747246218540,17.24515765,175.65,175.6,17.24515765]
[1747246219128,22.93862155,175.64,175.58,26.0]
[1747246219330,22.93862155,175.64,175.6,17.24515765]
[1747246219753,19.92712365,175.64,175.59,17.24515765]
[1747246219986,37.1722813,175.64,175.59,17.24515765]
[1747246220355,17.24515765,175.63,175.58,26.0]
[1747246220548,17.24515765,175.63,175.58,43.24515765]
[1747246220743,5.69411228,175.62,175.58,26.0]
[1747246220944,5.69411228,175.62,175.58,43.24515765]
[1747246221141,5.69411228,175.62,175.58,26.0]
[1747246221341,5.69411228,175.62,175.58,43.24515765]
[1747246221540,5.69411228,175.62,175.59,17.24515765]
[1747246222542,5.69411228,175.62,175.58,43.24515765]
[1747246222866,22.93926993,175.62,175.58,43.24515765]
[1747246223033,37.17455064,175.62,175.58,43.24515765]
[1747246223356,19.92939299,175.62,175.58,43.24515765]
[1747246224473,19.92939299,175.62,175.57,43.24515765]
[1747246224474,37.17455064,175.62,175.57,43.24515765]
[1747246225068,37.17455064,175.62,175.57,26.0]
[1747246225259,37.17455064,175.62,175.57,43.24515765]
[1747246225457,17.24515765,175.61,175.57,26.0]
[1747246227062,14.23528071,175.62,175.54,19.32]
[1747246227063,17.24515765,175.6,175.54,19.32]
[1747246227577,5.69476082,175.6,175.56,17.24515765]
[1747246227780,22.93991847,175.6,175.54,38.68]
[1747246227980,17.24515765,175.59,175.54,55.94515765]
[1747246228349,17.24515765,175.59,175.54,38.7]
[1747246228688,17.24515765,175.59,175.54,55.44515765]
[1747246228977,17.24515765,175.59,175.54,38.2]
[1747246229159,19.93166287,175.6,175.49,20.47912052]
[1747246229358,17.24515765,175.56,175.49,19.34]
[1747246229560,5.69638279,175.55,175.52,17.24515765]
[1747246229769,5.69638279,175.55,175.5,45.42]
[1747246230094,5.69638279,175.55,175.52,17.24515765]
[1747246231359,5.69638279,175.55,175.54,17.24515765]
[1747246231552,19.9350697,175.57,175.54,17.24515765]
[1747246231975,37.18022735,175.57,175.53,17.24515765]
[1747246232681,17.24515765,175.55,175.5,26.0]
[1747246232883,17.24515765,175.56,175.51,17.24515765]
[1747246233075,19.9350697,175.57,175.49,19.34]
[1747246233277,17.24515765,175.54,175.5,17.24515765]
[1747246233790,5.69703184,175.53,175.49,19.34]
[1747246233958,5.69703184,175.53,175.51,17.24515765]
[1747246235255,5.69703184,175.53,175.5,17.24515765]
[1747246235890,138.2,175.59,175.48,33.9547]
[1747246235891,37.1836332,175.54,175.48,33.9547]
[1747246236063,19.93847555,175.54,175.48,33.9547]
[1747246236257,37.1836332,175.54,175.48,33.9547]
[1747246236461,37.1836332,175.54,175.49,17.24515765]
[1747246236880,37.1836332,175.54,175.48,26.0]
[1747246237195,37.1836332,175.54,175.5,17.24515765]
[1747246237513,37.1836332,175.54,175.48,26.0]
[1747246237663,17.24515765,175.53,175.49,17.24515765]
[1747246237863,5.69735642,175.52,175.49,17.24515765]
[1747246239096,17.24515765,175.5,175.45,213.1]
[1747246239398,17.24515765,175.5,175.46,17.24515765]
[1747246239974,19.94074748,175.52,175.45,17.24515765]
[1747246240205,17.24515765,175.51,175.46,17.24515765]
[1747246240876,37.18590513,175.52,175.44,64.84]
[1747246241081,37.18590513,175.52,175.47,17.24515765]
[1747246241299,17.24515765,175.51,175.47,17.24515765]
[1747246242001,37.18590513,175.52,175.47,17.24515765]
[1747246242191,37.18590513,175.52,175.48,17.24515765]
[1747246242894,37.18590513,175.52,175.5,17.24515765]
[1747246242895,5.69735642,175.52,175.5,17.24515765]
[1747246243985,5.69735642,175.52,175.49,17.24515765]
[1747246244179,5.69735642,175.52,175.5,17.24515765]
[1747246245718,152.43905302,175.58,175.51,17.24515765]
[1747246245884,5.69573389,175.57,175.54,17.24515765]
[1747246246308,22.94089154,175.57,175.5,19.42]
[1747246246504,22.94089154,175.57,175.53,17.24515765]
[1747246246697,17.24515765,175.56,175.52,17.24515765]
[1747246246903,17.24515765,175.56,175.49,19.44]
[1747246247105,5.69573389,175.57,175.53,17.24515765]
[1747246247318,5.69573389,175.57,175.5,26.0]
[1747246247319,5.69573389,175.57,175.54,17.24515765]
[1747246248013,22.94089154,175.57,175.5,26.0]
[1747246248212,22.94089154,175.57,175.53,17.24515765]
[1747246248438,37.18022627,175.57,175.5,26.0]
[1747246248589,37.18022627,175.57,175.53,17.24515765]
[1747246250220,37.18022627,175.57,175.51,26.0]
[1747246250399,37.18022627,175.57,175.51,17.24515765]
[1747246250400,17.24515765,175.55,175.51,17.24515765]
[1747246250597,17.24515765,175.55,175.5,19.42]
[1747246250598,17.24515765,175.55,175.48,32.0333]
[1747246250796,17.24515765,175.54,175.49,17.24515765]
[1747246251013,17.24515765,175.54,175.5,17.24515765]
[1747246251315,17.24515765,175.55,175.5,17.24515765]
[1747246251811,17.24515765,175.55,175.51,17.24515765]
[1747246252294,5.6967073,175.54,175.51,17.24515765]
[1747246252501,5.6967073,175.54,175.53,17.24515765]
[1747246253890,5.6967073,175.54,175.48,26.0]
[1747246254094,5.6967073,175.54,175.51,17.24515765]
[1747246254694,5.6967073,175.54,175.5,17.24515765]
[1747246255614,19.93847555,175.54,175.48,45.36]
[1747246255798,19.93847555,175.54,175.5,17.24515765]
[1747246256705,17.24515765,175.54,175.49,17.24515765]
[1747246257222,19.93506862,175.57,175.48,45.36]
[1747246257406,17.24515765,175.54,175.5,17.24515765]
[1747246257908,17.24515765,175.53,175.49,17.24515765]
[1747246258106,17.24515765,175.52,175.48,43.24515765]
[1747246258414,17.24515765,175.5,175.45,17.24515765]
[1747246258721,5.69833038,175.49,175.45,43.24515765]
[1747246258903,22.94348803,175.49,175.45,43.24515765]
[1747246259321,37.189314,175.49,175.44,25.8196]
[1747246259523,37.189314,175.49,175.44,19.38]
[1747246259524,17.24515765,175.47,175.44,19.38]
[1747246259712,17.24515765,175.47,175.42,36.60515765]
[1747246259905,17.24515765,175.48,175.44,17.24515765]
[1747246260504,17.24515765,175.47,175.43,17.24515765]
[1747246260707,5.69930468,175.46,175.43,17.24515765]
[1747246261434,5.69930468,175.46,175.44,17.24515765]
[1747246261940,155.58731922,175.52,175.45,17.24515765]
[1747246261941,5.69768104,175.51,175.45,17.24515765]
[1747246262228,22.94283869,175.51,175.47,17.24515765]
[1747246262410,5.69768104,175.51,175.42,1.13985715]
[1747246262614,37.18704129,175.51,175.47,17.24515765]
[1747246263334,19.94188364,175.51,175.47,17.24515765]
[1747246263832,5.69768104,175.51,175.48,17.24515765]
[1747246264017,5.69768104,175.51,175.5,17.24515765]
[1747246264329,143.89738838,175.52,175.5,17.24515765]
[1747246264532,143.89738838,175.52,175.51,17.24515765]
[1747246264730,138.2,175.52,175.51,17.24515765]
[1747246265229,143.89735642,175.52,175.51,17.24515765]
[1747246266623,138.2,175.52,175.51,17.24515765]
[1747246267206,143.89735642,175.52,175.51,17.24515765]
[1747246268830,36.04595922,175.58,175.51,17.24515765]
[1747246269025,5.69573389,175.57,175.56,17.24515765]
[1747246269422,5.69573389,175.57,175.55,17.24515765]
[1747246270330,37.17795564,175.59,175.51,27.13941986]
[1747246270532,17.24515765,175.58,175.53,17.24515765]
[1747246270710,17.24515765,175.58,175.54,17.24515765]
[1747246271307,37.17795564,175.59,175.54,17.24515765]
[1747246271706,17.24515765,175.58,175.54,17.24515765]
[1747246271935,17.24515765,175.58,175.53,17.24515765]
[1747246272723,5.69573389,175.57,175.53,17.24515765]
[1747246272902,5.69573389,175.57,175.54,17.24515765]
[1747246273827,5.69573389,175.57,175.55,17.24515765]
[1747246274018,2.9659536,175.61,175.51,31.69763436]
[1747246274019,5.69508514,175.59,175.56,17.24515765]
[1747246275733,5.69484225,175.6,175.58,17.24515765]
[1747246276027,5.69484225,175.6,175.59,17.24515765]
[1747246276234,5.69484225,175.6,175.58,17.24515765]
[1747246276446,5.69484225,175.6,175.57,17.24515765]
[1747246276808,5.69484225,175.6,175.58,17.24515765]
[1747246278835,22.9399999,175.6,175.56,17.24515765]
[1747246279034,22.9399999,175.6,175.53,20.9147]
[1747246279248,17.24515765,175.59,175.54,17.24515765]
[1747246279412,22.94056714,175.58,175.54,17.24515765]
[1747246279929,37.17909088,175.58,175.53,17.24515765]
[1747246280230,37.17909088,175.58,175.54,17.24515765]
[1747246280436,37.17909088,175.58,175.53,17.24515765]
[1747246282033,5.69605832,175.56,175.52,17.24515765]
[1747246282547,17.24515765,175.55,175.51,17.24515765]
[1747246282741,19.93620413,175.56,175.52,17.24515765]
[1747246283032,37.18136178,175.56,175.52,17.24515765]
[1747246283516,37.18136178,175.56,175.49,26.0]
[1747246283714,37.18136178,175.56,175.52,17.24515765]
[1747246283925,37.18136178,175.56,175.51,17.24515765]
[1747246284722,19.93620413,175.56,175.52,17.24515765]
[1747246284923,37.18136178,175.56,175.51,17.24515765]
[1747246285620,5.69605832,175.56,175.53,17.24515765]
[1747246285820,5.69605832,175.56,175.52,17.24515765]
[1747246286050,5.69605832,175.56,175.53,17.24515765]
[1747246286213,5.69605832,175.56,175.55,17.24515765]
[1747246286739,5.69573389,175.57,175.55,17.24515765]
[1747246287159,138.2,175.58,175.56,17.24515765]
[1747246287160,143.89546699,175.58,175.56,17.24515765]
[1747246287323,5.69546699,175.58,175.56,17.24515765]
[1747246288011,5.69546699,175.58,175.55,17.24515765]
[1747246290849,37.1770192,175.6,175.55,17.24515765]
[1747246292637,17.24515765,175.57,175.52,27.6203]
[1747246292857,17.24515765,175.57,175.52,43.24515765]
[1747246293033,5.69605832,175.56,175.52,17.24515765]
[1747246293229,17.24515765,175.54,175.44,6.92897193]
[1747246293461,17.24515765,175.53,175.48,17.24515765]
[1747246293752,21.59170413,175.56,175.49,17.24515765]
[1747246293753,17.24515765,175.54,175.49,17.24515765]
[1747246294148,17.24515765,175.54,175.5,17.24515765]
[1747246295069,5.69703184,175.53,175.5,17.24515765]
[1747246296456,19.93961145,175.53,175.49,17.24515765]
[1747246296657,17.24515765,175.52,175.46,26.0]
[1747246296859,17.24515765,175.52,175.47,17.24515765]
[1747246297762,5.69768104,175.51,175.47,17.24515765]
[1747246297946,5.69768104,175.51,175.48,17.24515765]
[1747246298455,5.69768104,175.51,175.46,45.34]
[1747246298756,5.69768104,175.51,175.48,17.24515765]
[1747246299332,5.69768104,175.51,175.49,17.24515765]
[1747246299944,5.69735642,175.52,175.49,17.24515765]
[1747246300660,5.6967073,175.54,175.51,17.24515765]
[1747246300857,5.6967073,175.54,175.52,17.24515765]
[1747246301036,5.6967073,175.54,175.48,7.8911]
[1747246301236,5.6967073,175.54,175.51,17.24515765]
[1747246302964,5.6967073,175.54,175.48,7.8911]
[1747246303258,5.6967073,175.54,175.51,17.24515765]
[1747246305450,5.6967073,175.54,175.52,17.24515765]
[1747246305651,143.89649391,175.55,175.52,17.24515765]
[1747246307650,143.89649391,175.55,175.53,17.24515765]
[1747246307847,143.89649391,175.55,175.52,17.24515765]
[1747246308465,143.89649391,175.55,175.48,13.58973839]
[1747246308640,143.89649391,175.55,175.52,17.24515765]
[1747246309744,27.6225,175.6,175.49,5.69830669]
[1747246309745,5.69617061,175.56,175.54,17.24515765]
[1747246309958,5.69617061,175.56,175.55,17.24515765]
[1747246310566,5.69508514,175.59,175.55,17.24515765]
[1747246311375,37.17795564,175.59,175.52,19.34]
[1747246311555,37.17795564,175.59,175.54,17.24515765]
[1747246311869,37.17795564,175.59,175.55,17.24515765]
[1747246312037,19.93279799,175.59,175.55,17.24515765]
[1747246312234,37.17795564,175.59,175.54,17.24515765]
[1747246314668,17.24515765,175.58,175.52,19.34]
[1747246314977,37.17795564,175.59,175.54,17.24515765]
[1747246316146,17.24515765,175.58,175.53,17.24515765]
[1747246316855,5.69573389,175.57,175.53,17.24515765]
[1747246317159,37.18022627,175.57,175.5,19.32]
[1747246317364,17.24515765,175.56,175.51,17.24515765]
[1747246318071,17.24515765,175.56,175.5,19.32]
[1747246318072,17.24515765,175.56,175.52,17.24515765]
[1747246318874,5.69638279,175.55,175.52,17.24515765]
[1747246319557,5.69638279,175.55,175.54,17.24515765]
[1747246320874,19.93506862,175.57,175.54,17.24515765]
[1747246321955,5.69573389,175.57,175.55,17.24515765]
[1747246322159,5.69573389,175.57,175.56,17.24515765]
[1747246322373,5.69573389,175.57,175.55,17.24515765]
[1747246322875,138.2,175.58,175.56,17.24515765]
[1747246323080,5.69529647,175.59,175.57,17.24515765]
[1747246323248,5.69529647,175.59,175.58,17.24515765]
[1747246325152,19.92939299,175.62,175.58,17.24515765]
[1747246325452,19.92939299,175.62,175.59,17.24515765]
[1747246326647,19.92939299,175.62,175.58,17.24515765]
[1747246327557,37.17455064,175.62,175.57,17.24515765]
[1747246327774,17.24515765,175.61,175.57,17.24515765]
[1747246328175,19.92939299,175.62,175.54,7.7026]
[1747246328365,37.17455064,175.62,175.57,17.24515765]
[1747246329175,17.24515765,175.61,175.54,7.7026]
[1747246329375,17.24515765,175.59,175.53,26.0]
[1747246329588,17.24515765,175.57,175.53,26.0]
[1747246329898,17.24515765,175.56,175.52,17.24515765]
[1747246330101,17.24515765,175.57,175.52,17.24515765]
[1747246330609,17.24515765,175.58,175.53,17.24515765]
[1747246331101,17.24515765,175.6,175.55,17.24515765]
[1747246331302,5.69508514,175.59,175.56,17.24515765]
[1747246333602,5.69508514,175.59,175.51,26.0]
[1747246333603,19.93279799,175.59,175.55,17.24515765]
[1747246335080,19.93279799,175.59,175.56,17.24515765]
[1747246335281,5.69476082,175.6,175.56,17.24515765]
[1747246335682,5.69476082,175.6,175.57,17.24515765]
[1747246335878,5.69476082,175.6,175.54,26.0]
[1747246335879,5.69476082,175.6,175.58,17.24515765]
[1747246337491,5.69476082,175.6,175.59,17.24515765]
[1747246338021,5.69476082,175.6,175.58,17.24515765]
[1747246339928,5.69476082,175.6,175.55,19.32]
[1747246340171,37.17682052,175.6,175.56,17.24515765]
[1747246340404,17.24515765,175.58,175.53,26.0]
[1747246340597,17.24515765,175.57,175.53,43.24515765]
[1747246340788,17.24515765,175.58,175.53,43.24515765]
[1747246341618,5.69573389,175.57,175.53,43.24515765]
[1747246343321,5.69573389,175.57,175.54,17.24515765]
[1747246343485,5.69573389,175.57,175.56,17.24515765]
[1747246343685,5.69508514,175.59,175.56,17.24515765]
[1747246344497,5.69508514,175.59,175.55,17.24515765]
[1747246345603,5.69508514,175.59,175.56,17.24515765]
[1747246346297,5.69508514,175.59,175.53,26.0]
[1747246346504,5.69508514,175.59,175.55,17.24515765]
[1747246346815,5.69508514,175.59,175.56,17.24515765]
[1747246349037,5.69508514,175.59,175.55,17.24515765]
[1747246349336,22.94024279,175.59,175.55,17.24515765]
[1747246349923,22.94024279,175.59,175.53,26.0]
[1747246349924,37.17795564,175.59,175.54,17.24515765]
[1747246351447,14.23771285,175.59,175.54,17.24515765]
[1747246351620,31.4828705,175.59,175.55,17.24515765]
[1747246352316,14.23771285,175.59,175.55,17.24515765]
[1747246352532,14.23771285,175.59,175.56,17.24515765]
[1747246352738,22.93991847,175.6,175.56,17.24515765]
[1747246352934,22.93991847,175.6,175.53,26.0]
[1747246352935,5.69476082,175.6,175.57,17.24515765]
[1747246353618,5.69476082,175.6,175.56,17.24515765]
[1747246355625,19.93166287,175.6,175.56,17.24515765]
[1747246356619,37.17682052,175.6,175.55,17.24515765]
[1747246357121,17.24515765,175.58,175.54,17.24515765]
[1747246358422,19.93506862,175.57,175.54,17.24515765]
[1747246359248,19.93506862,175.57,175.53,26.0]
[1747246359249,37.18022627,175.57,175.53,17.24515765]
[1747246360446,37.18022627,175.57,175.52,17.24515765]
[1747246361149,37.18022627,175.57,175.53,17.24515765]
[1747246361844,37.18022627,175.57,175.51,26.0]
[1747246362050,37.18022627,175.57,175.53,17.24515765]
[1747246362232,19.93506862,175.57,175.54,17.24515765]
[1747246362545,5.69573389,175.57,175.55,17.24515765]
[1747246363858,19.93279799,175.59,175.55,17.24515765]
[1747246364342,37.17795564,175.59,175.55,17.24515765]
[1747246365163,17.24515765,175.57,175.51,26.0]
[1747246365369,17.24515765,175.57,175.52,17.24515765]
[1747246365860,5.69605832,175.56,175.52,17.24515765]
[1747246366047,5.69605832,175.56,175.53,17.24515765]
[1747246367463,14.24008198,175.57,175.53,17.24515765]
[1747246370373,19.93581587,175.57,175.54,17.24515765]
[1747246371072,5.69573389,175.57,175.55,17.24515765]
[1747246371467,17.24515765,175.59,175.55,17.24515765]
[1747246371468,19.93393323,175.58,175.55,17.24515765]
[1747246371767,37.17909088,175.58,175.54,17.24515765]
[1747246371970,17.24515765,175.57,175.51,26.0]
[1747246372146,17.24515765,175.56,175.52,17.24515765]
[1747246374878,19.93733978,175.55,175.52,17.24515765]
[1747246375449,19.93733978,175.55,175.53,17.24515765]
[1747246375952,19.93733978,175.55,175.51,26.0]
[1747246376262,19.93733978,175.55,175.52,17.24515765]
[1747246381074,19.93733978,175.55,175.51,26.0]
[1747246381268,37.18249743,175.55,175.51,43.24515765]
[1747246382256,19.93733978,175.55,175.52,17.24515765]
[1747246383793,19.93733978,175.55,175.49,19.28]
[1747246383962,19.93733978,175.55,175.52,17.24515765]
[1747246385177,17.24515765,175.53,175.49,17.24515765]
[1747246385388,17.24515765,175.53,175.46,19.28]
[1747246385609,17.24515765,175.53,175.48,17.24515765]
[1747246385977,17.24515765,175.53,175.49,17.24515765]
[1747246386693,17.24515765,175.53,175.48,17.24515765]
[1747246386898,17.24515765,175.5,175.42,7.7588]
[1747246387071,17.24515765,175.49,175.45,17.24515765]
[1747246387471,17.24515765,175.49,175.44,17.24515765]
[1747246387699,17.24515765,175.48,175.43,43.24515765]
[1747246387878,17.24515765,175.47,175.43,17.24515765]
[1747246388082,17.24515765,175.46,175.42,17.24515765]
[1747246388881,17.24515765,175.47,175.42,17.24515765]
[1747246389207,17.24515765,175.47,175.4,19.28]
[1747246389384,17.24515765,175.46,175.42,17.24515765]
[1747246389792,17.24515765,175.46,175.41,17.24515765]
[1747246391205,5.69962952,175.45,175.41,17.24515765]
[1747246391712,19.94870333,175.45,175.41,17.24515765]
[1747246391884,37.19386098,175.45,175.41,17.24515765]
[1747246392505,19.94870333,175.45,175.41,17.24515765]
[1747246393129,5.69865511,175.48,175.44,17.24515765]
[1747246393328,22.94283869,175.51,175.47,17.24515765]
[1747246393624,17.24515765,175.5,175.45,17.24515765]
[1747246393825,17.24515765,175.49,175.45,17.24515765]
[1747246393999,17.24515765,175.49,175.41,26.0]
[1747246394206,17.24515765,175.49,175.45,17.24515765]
[1747246394407,17.24515765,175.49,175.41,26.0]
[1747246394605,17.24515765,175.49,175.45,17.24515765]
[1747246395420,5.69865511,175.48,175.45,17.24515765]
[1747246396212,5.69865511,175.48,175.41,27.13984351]
[1747246396213,17.24515765,175.47,175.43,17.24515765]
[1747246396821,37.19045055,175.48,175.44,17.24515765]
[1747246397197,17.24515765,175.47,175.41,26.0]
[1747246397397,5.69930468,175.46,175.43,17.24515765]
[1747246398334,5.69930468,175.46,175.42,17.24515765]
[1747246399934,14.24663779,175.48,175.42,17.24515765]
[1747246400230,31.49179544,175.48,175.44,17.24515765]
[1747246400442,31.49179544,175.48,175.43,17.24515765]
[1747246400824,17.24515765,175.47,175.43,17.24515765]
[1747246401628,5.69930468,175.46,175.43,17.24515765]
[1747246401828,5.69930468,175.46,175.44,17.24515765]
[1747246402741,5.69930468,175.46,175.43,17.24515765]
[1747246403425,5.69930468,175.46,175.44,17.24515765]
[1747246403737,5.69897988,175.47,175.44,17.24515765]
[1747246405549,5.69875705,175.48,175.46,17.24515765]
[1747246405750,17.24515765,175.51,175.46,17.24515765]
[1747246405751,5.69800569,175.5,175.46,17.24515765]
[1747246406122,5.69800569,175.5,175.47,17.24515765]
[1747246406644,5.69800569,175.5,175.46,17.24515765]
[1747246407572,22.94283869,175.51,175.46,17.24515765]
[1747246408269,5.69768104,175.51,175.46,17.24515765]
[1747246408470,22.94283869,175.51,175.46,17.24515765]
[1747246409974,37.18704129,175.51,175.46,17.24515765]
[1747246410551,17.24515765,175.5,175.46,17.24515765]
[1747246411275,5.69833038,175.49,175.42,6.84023044]
[1747246411587,5.69833038,175.49,175.46,17.24515765]
[1747246411794,5.69833038,175.49,175.45,17.24515765]
[1747246414395,19.94188364,175.51,175.45,17.24515765]
[1747246414597,17.24515765,175.5,175.45,17.24515765]
[1747246415324,17.24515765,175.48,175.44,17.24515765]
[1747246415677,17.24515765,175.47,175.43,17.24515765]
[1747246415872,17.24515765,175.48,175.44,17.24515765]
[1747246416700,5.69897988,175.47,175.44,17.24515765]
[1747246417302,5.69897988,175.47,175.45,17.24515765]
[1747246418492,5.69864018,175.49,175.45,17.24515765]
[1747246419308,5.69864018,175.49,175.46,17.24515765]
[1747246419481,155.4120488,175.52,175.43,5.70026234]
[1747246419482,5.69768104,175.51,175.47,17.24515765]
[1747246419808,5.69768104,175.51,175.48,17.24515765]
[1747246420109,5.69768104,175.51,175.49,17.24515765]
[1747246422215,5.69768104,175.51,175.48,17.24515765]
[1747246424309,5.69768104,175.51,175.44,52.62137389]
[1747246424310,22.94283869,175.51,175.47,17.24515765]
[1747246425112,17.24515765,175.49,175.45,17.24515765]
[1747246425708,17.24515765,175.5,175.46,17.24515765]
[1747246427684,37.189314,175.49,175.45,17.24515765]
[1747246427885,37.189314,175.49,175.44,43.24515765]
[1747246428407,17.24515765,175.47,175.41,26.0]
[1747246428609,17.24515765,175.47,175.42,17.24515765]
[1747246429504,17.24515765,175.46,175.42,17.24515765]
[1747246429685,19.94870333,175.45,175.42,17.24515765]
[1747246431897,14.24907381,175.45,175.4,26.0]
[1747246432102,14.24907381,175.45,175.42,17.24515765]
[1747246436007,17.24515765,175.42,175.33,20.40014446]
[1747246436208,19.95325237,175.41,175.33,39.64014446]
[1747246436406,19.95325237,175.41,175.37,17.24515765]
[1747246436726,37.19841002,175.41,175.35,26.0]
[1747246436925,37.19841002,175.41,175.36,17.24515765]
[1747246439218,37.19841002,175.41,175.37,17.24515765]
[1747246439219,19.95325237,175.41,175.37,17.24515765]
[1747246439428,37.19841002,175.41,175.37,17.24515765]
[1747246441021,37.19841002,175.41,175.36,17.24515765]
[1747246441218,17.24515765,175.39,175.34,17.24515765]
[1747246443434,19.95666552,175.38,175.34,17.24515765]
[1747246443638,65.71134535,175.38,175.33,17.24515765]
[1747246443842,17.24515765,175.37,175.33,17.24515765]
[1747246444350,1.13935603,175.37,175.31,19.26]
[1747246444506,17.24515765,175.35,175.3,17.24515765]
[1747246444903,1.13935603,175.37,175.31,17.24515765]
[1747246445101,17.24515765,175.35,175.31,17.24515765]
[1747246445837,5.7032052,175.34,175.31,17.24515765]
[1747246446332,5.7032052,175.34,175.32,17.24515765]
[1747246446514,5.7032052,175.34,175.33,17.24515765]
[1747246447852,14.25799351,175.35,175.33,17.24515765]
[1747246448229,14.25799351,175.35,175.32,17.24515765]
[1747246448536,14.25799351,175.35,175.27,26.0]
[1747246448537,14.25799351,175.35,175.31,17.24515765]
[1747246449232,19.96087346,175.35,175.31,17.24515765]
[1747246449432,19.96087346,175.35,175.32,17.24515765]
[1747246451443,19.96087346,175.35,175.31,17.24515765]
[1747246451932,19.96087346,175.35,175.32,17.24515765]
[1747246454336,19.96087346,175.35,175.31,17.24515765]